bitfinex/quotes_SOLUSD_20240930
["timestamp","ask_amount","ask_price","bid_price","bid_amount"]
[1727703077528,6.3682,157.03,157.02,0.8559525]
[1727703078579,7.96059225,157.03,157.02,5.25e-05]
[1727703079966,6.3682,157.03,157.02,5.25e-05]
[1727703082305,6.3678,157.04,157.02,5.25e-05]
[1727703082793,15.9137,157.1,157.02,5.25e-05]
[1727703083181,6.3674,157.05,157.02,5.25e-05]
[1727703083504,15.9137,157.1,157.02,5.25e-05]
[1727703083709,6.3665,157.08,157.03,6.3681]
[1727703083996,6.3665,157.07,157.02,6.3685525]
[1727703084695,6.3671,157.06,157.02,5.25e-05]
[1727703085598,15.9133,157.11,157.02,5.25e-05]
[1727703085800,6.3665,157.08,157.03,6.3681]
[1727703085989,6.3665,157.08,157.04,0.39050496]
[1727703086180,6.3658,157.09,157.04,6.75810496]
[1727703086494,15.9055,157.18,157.07,31.72559129]
[1727703086698,6.3637,157.14,157.09,22.32689129]
[1727703086906,6.3637,157.14,157.1,0.38902913]
[1727703087113,6.3642,157.13,157.09,15.96119129]
[1727703087672,15.9055,157.18,157.09,22.32689129]
[1727703087673,6.3637,157.14,157.09,22.32689129]
[1727703088073,1.59084831,157.17,157.09,15.96119129]
[1727703088267,6.3641,157.13,157.09,15.96119129]
[1727703090092,6.3645,157.12,157.07,38.09209129]
[1727703090271,6.365,157.11,157.07,38.09209129]
[1727703090779,6.3645,157.12,157.07,38.09209129]
[1727703091373,1.59097854,157.17,157.07,31.72559129]
[1727703091585,15.9055,157.18,157.07,31.72559129]
[1727703091586,15.9055,157.18,157.1,6.3652]
[1727703091787,15.9055,157.18,157.11,0.38869656]
[1727703091974,38.0333,157.23,157.11,0.38869656]
[1727703091975,31.8017,157.23,157.12,6.1011]
[1727703092177,6.3628,157.17,157.12,12.4656]
[1727703092377,6.3628,157.17,157.13,15.96119129]
[1727703093396,17.49305296,157.21,157.13,15.96119129]
[1727703093586,6.3634,157.15,157.12,6.1011]
[1727703093801,6.3629,157.16,157.12,6.1011]
[1727703094099,6.3626,157.17,157.13,15.96119129]
[1727703094290,6.363,157.16,157.13,15.96119129]
[1727703094676,6.363,157.16,157.12,6.1011]
[1727703096208,1.59057594,157.18,157.12,6.1011]
[1727703096520,6.3641,157.13,157.12,6.1011]
[1727703098603,15.9048,157.19,157.12,6.1011]
[1727703098604,6.3638,157.14,157.12,6.1011]
[1727703099201,15.9048,157.19,157.12,6.1011]
[1727703099202,6.3641,157.13,157.12,6.1011]
[1727703100490,6.3638,157.14,157.12,6.1011]
[1727703100686,6.3634,157.15,157.12,6.1011]
[1727703100891,6.3639,157.14,157.12,6.1011]
[1727703101089,1.5907664,157.18,157.12,6.1011]
[1727703101394,6.3638,157.14,157.12,6.1011]
[1727703103096,6.3641,157.13,157.12,6.1011]
[1727703104690,15.9048,157.19,157.12,6.1011]
[1727703104917,6.3617,157.19,157.15,22.32449129]
[1727703105107,15.542,157.25,157.15,22.32449129]
[1727703105108,15.542,157.25,157.16,0.38757173]
[1727703105317,6.3613,157.2,157.16,0.38757173]
[1727703105624,6.3609,157.21,157.16,6.75037173]
[1727703105909,6.3609,157.21,157.17,22.32369129]
[1727703106107,6.3605,157.22,157.19,6.095]
[1727703106399,6.3605,157.22,157.2,0.38696384]
[1727703106924,15.8985,157.25,157.21,31.96899129]
[1727703106925,6.3593,157.25,157.21,31.96899129]
[1727703107239,6.3593,157.25,157.21,38.32979129]
[1727703107608,15.8924,157.31,157.21,38.32979129]
[1727703107896,6.3585,157.27,157.23,15.96119129]
[1727703108789,6.3589,157.26,157.23,15.96119129]
[1727703109212,6.3581,157.28,157.24,0.38581937]
[1727703109405,6.3576,157.3,157.24,0.38581937]
[1727703109703,6.3577,157.29,157.24,0.38581937]
[1727703109906,1.5893518,157.32,157.23,15.96119129]
[1727703110105,6.3584,157.28,157.23,15.96119129]
[1727703110705,6.3584,157.28,157.24,0.38553708]
[1727703110901,6.3585,157.27,157.23,15.96119129]
[1727703111106,6.3581,157.28,157.23,15.96119129]
[1727703113185,6.3581,157.28,157.23,22.32119129]
[1727703114088,6.3581,157.28,157.24,0.38548217]
[1727703114302,6.3581,157.28,157.23,22.32119129]
[1727703116291,6.3586,157.27,157.23,22.32119129]
[1727703116798,6.3586,157.27,157.24,0.38554049]
[1727703117131,6.3575,157.3,157.26,6.3772]
[1727703117456,47.6665,157.35,157.27,0.38495829]
[1727703117714,6.3573,157.3,157.27,0.38495829]
[1727703117918,6.3577,157.29,157.26,6.3772]
[1727703118105,47.6665,157.35,157.26,6.3772]
[1727703118310,6.3577,157.29,157.26,6.3772]
[1727703118497,6.3573,157.3,157.27,0.38502174]
[1727703118902,6.3573,157.3,157.26,6.3772]
[1727703119103,6.3573,157.3,157.27,0.38496884]
[1727703120200,6.3569,157.31,157.27,0.38496884]
[1727703120406,6.3569,157.31,157.27,6.74336884]
[1727703120800,15.8886,157.35,157.28,22.0348]
[1727703121026,15.8855,157.38,157.3,6.3572]
[1727703121219,15.8855,157.38,157.28,15.6768]
[1727703121220,6.3565,157.32,157.28,15.6768]
[1727703121430,6.3572,157.3,157.29,30.0]
[1727703121628,6.3569,157.31,157.29,30.0]
[1727703121811,6.3569,157.31,157.28,15.6768]
[1727703126824,6.3573,157.3,157.28,15.6768]
[1727703127330,6.3569,157.31,157.28,15.6768]
[1727703129306,6.3566,157.32,157.29,0.38464311]
[1727703129510,6.3566,157.32,157.3,0.38452955]
[1727703130131,6.3572,157.31,157.28,15.6768]
[1727703130840,6.3565,157.32,157.29,0.38468481]
[1727703133240,6.3565,157.32,157.28,15.6768]
[1727703133241,6.3569,157.31,157.28,15.6768]
[1727703133541,6.3573,157.3,157.28,15.6768]
[1727703134809,6.3569,157.31,157.29,0.38486291]
[1727703135217,6.3569,157.31,157.28,15.6768]
[1727703135839,6.3573,157.3,157.26,28.6327]
[1727703136554,6.3573,157.3,157.24,15.2592]
[1727703136555,6.3589,157.26,157.24,15.2592]
[1727703136736,6.3593,157.25,157.22,6.4195]
[1727703136932,6.3589,157.26,157.22,6.4195]
[1727703137452,6.3581,157.28,157.24,6.3596]
[1727703137646,6.3581,157.28,157.25,0.38556779]
[1727703137844,6.3581,157.28,157.24,10.18300957]
[1727703138710,6.3577,157.29,157.26,10.18300957]
[1727703139127,6.3577,157.29,157.24,16.54250957]
[1727703139323,17.47986793,157.33,157.24,16.54250957]
[1727703139525,6.3577,157.29,157.24,16.54250957]
[1727703139725,6.3577,157.29,157.24,6.3595]
[1727703140343,6.3569,157.31,157.26,6.3588]
[1727703140541,6.3575,157.3,157.25,6.3591]
[1727703141330,6.3578,157.29,157.25,6.3591]
[1727703141530,6.3578,157.29,157.26,0.38531266]
[1727703142430,16.421,157.35,157.27,0.38529385]
[1727703142632,6.3569,157.31,157.27,0.38529385]
[1727703142825,16.421,157.35,157.26,6.3585]
[1727703143017,6.3573,157.3,157.26,6.3585]
[1727703143637,6.3579,157.29,157.24,22.2583]
[1727703144153,6.3582,157.28,157.24,15.8987]
[1727703144450,6.3585,157.27,157.23,6.3599]
[1727703144644,15.8916,157.32,157.23,6.3599]
[1727703144645,6.3581,157.28,157.23,6.3599]
[1727703146370,6.3593,157.25,157.22,6.4195]
[1727703146866,15.8938,157.3,157.23,0.38609182]
[1727703147038,15.8907,157.33,157.24,6.3596]
[1727703147237,15.8907,157.33,157.25,0.38547387]
[1727703147528,6.3579,157.29,157.25,0.38547387]
[1727703148285,16.421,157.35,157.25,16.28307387]
[1727703148476,1.58916829,157.34,157.26,6.3587]
[1727703148752,6.3573,157.3,157.26,6.3587]
[1727703149456,16.421,157.35,157.26,6.3587]
[1727703149634,6.3569,157.31,157.27,6.3584]
[1727703149826,6.3565,157.32,157.28,0.38497456]
[1727703150556,6.3568,157.31,157.27,15.0502]
[1727703151851,6.3568,157.31,157.27,21.4086]
[1727703152393,15.8875,157.36,157.27,21.4086]
[1727703152681,6.3557,157.34,157.29,6.3576]
[1727703153046,15.8875,157.36,157.29,6.3576]
[1727703153230,6.3561,157.33,157.29,6.3576]
[1727703153430,15.8875,157.36,157.29,6.3576]
[1727703153750,6.3557,157.34,157.3,0.38421037]
[1727703154960,6.3557,157.34,157.29,6.3576]
[1727703155132,6.3564,157.32,157.28,12.867]
[1727703158359,6.3564,157.32,157.29,0.38473251]
[1727703158853,6.3564,157.32,157.3,0.38466929]
[1727703159055,6.3564,157.32,157.28,12.867]
[1727703160145,6.3564,157.32,157.29,0.38463239]
[1727703160554,15.8866,157.37,157.29,0.38463239]
[1727703160858,15.6141,157.39,157.3,15.90984261]
[1727703161046,6.3551,157.36,157.32,6.3563]
[1727703161361,6.3551,157.36,157.33,0.38380264]
[1727703161751,15.8837,157.4,157.33,10.55504797]
[1727703161948,6.355,157.36,157.33,10.17124533]
[1727703163029,6.3555,157.35,157.31,22.2485]
[1727703163269,15.8853,157.38,157.3,10.17124533]
[1727703163457,6.3569,157.31,157.28,6.509]
[1727703164650,6.3576,157.29,157.28,6.509]
[1727703164873,6.3573,157.3,157.27,15.0502]
[1727703167577,1.58918979,157.35,157.27,15.0502]
[1727703167777,6.3569,157.31,157.27,15.0502]
[1727703167975,1.58910434,157.35,157.27,15.0502]
[1727703168158,6.3574,157.3,157.27,15.0502]
[1727703168358,6.3565,157.32,157.27,21.4083]
[1727703169575,6.3565,157.32,157.28,0.38459773]
[1727703169763,6.3565,157.32,157.27,21.4083]
[1727703171903,6.3555,157.35,157.3,6.3571]
[1727703172179,6.3555,157.35,157.31,0.38408806]
[1727703172380,15.8845,157.39,157.32,6.3563]
[1727703172381,6.3548,157.36,157.32,6.3563]
[1727703172561,6.3548,157.36,157.33,0.3836353]
[1727703172770,16.3529,157.41,157.33,6.7396353]
[1727703172980,0.8559,157.41,157.33,31.81169771]
[1727703173170,6.3532,157.4,157.35,6.3552]
[1727703174685,7.2088,157.41,157.36,6.3547]
[1727703176576,7.2088,157.41,157.35,22.2427]
[1727703176755,7.2088,157.41,157.36,6.3546]
[1727703179472,7.2088,157.41,157.36,12.6046]
[1727703179887,7.2088,157.41,157.37,6.3543]
[1727703180080,0.8559,157.41,157.37,6.3543]
[1727703180275,0.8559,157.41,157.38,6.354]
[1727703180472,0.8559,157.41,157.39,0.38233691]
[1727703180791,0.8559,157.41,157.36,6.25]
[1727703180994,7.2088,157.41,157.37,6.3543]
[1727703181513,7.2088,157.41,157.36,6.25]
[1727703181514,0.8559,157.41,157.36,6.25]
[1727703181808,6.354,157.38,157.33,38.1501]
[1727703182014,0.8559,157.41,157.32,6.3053]
[1727703182191,18.3269299,157.41,157.3,15.8931]
[1727703182512,18.3269299,157.41,157.29,16.628]
[1727703182513,6.3556,157.34,157.29,16.628]
[1727703182808,6.3552,157.35,157.29,22.9856]
[1727703183590,6.3552,157.35,157.3,0.38412954]
[1727703184170,6.3552,157.35,157.29,22.9856]
[1727703185675,6.3552,157.35,157.3,6.74127467]
[1727703185872,16.7385,157.41,157.3,16.27697467]
[1727703186169,6.3548,157.37,157.31,6.3568]
[1727703187264,1.58857962,157.4,157.31,6.3568]
[1727703187465,6.3549,157.36,157.31,6.3568]
[1727703189876,16.7385,157.41,157.32,6.3564]
[1727703189877,6.3545,157.37,157.32,6.3564]
[1727703190074,6.3545,157.37,157.33,0.383471]
[1727703190394,16.7385,157.41,157.3,15.8929]
[1727703190395,6.356,157.34,157.3,15.8929]
[1727703191581,15.8848,157.39,157.29,22.9853]
[1727703191786,6.3561,157.33,157.29,16.628]
[1727703191990,6.3564,157.32,157.29,16.628]
[1727703193098,6.3557,157.34,157.29,22.9856]
[1727703193275,6.3553,157.35,157.3,6.741417]
[1727703193478,6.3553,157.35,157.31,6.3567]
[1727703193693,6.3553,157.35,157.32,0.38393858]
[1727703193889,15.8833,157.4,157.32,0.38393858]
[1727703194271,6.3549,157.36,157.32,0.38393858]
[1727703195698,6.3545,157.37,157.32,6.73993858]
[1727703196400,6.3545,157.37,157.33,0.38360129]
[1727703196596,6.3545,157.37,157.33,6.73940129]
[1727703196903,6.3545,157.37,157.33,6.3558]
[1727703198904,6.3548,157.36,157.32,6.3563]
[1727703199096,1.58849696,157.39,157.31,15.8918]
[1727703199097,6.3552,157.35,157.31,22.2486]
[1727703199301,1.58849696,157.39,157.31,22.2486]
[1727703199597,6.3549,157.36,157.31,22.2486]
[1727703199793,6.3549,157.36,157.32,6.3564]
[1727703200790,0.8559,157.41,157.35,16.6156]
[1727703201007,0.8559,157.41,157.36,0.38269977]
[1727703201200,6.3533,157.4,157.35,38.8583]
[1727703201523,6.3533,157.4,157.36,6.3548]
[1727703203202,7.2088,157.41,157.37,6.3543]
[1727703203514,0.8559,157.41,157.38,0.38256394]
[1727703203721,0.8559,157.41,157.4,6.3532]
[1727703203909,0.8559,157.41,157.4,12.6624]
[1727703204243,0.8559,157.41,157.4,28.7413]
[1727703204415,0.8559,157.41,157.4,29.12220278]
[1727703204721,0.8559,157.41,157.4,44.64839771]
[1727703206398,0.8559,157.41,157.4,28.7413]
[1727703207785,0.8559,157.41,157.4,44.64839771]
[1727703209296,0.8559,157.41,157.4,28.7413]
[1727703209694,0.8559,157.41,157.4,22.3881]
[1727703209907,0.8559,157.41,157.4,6.3092]
[1727703210086,0.8559,157.41,157.37,15.8857]
[1727703210305,0.8559,157.41,157.37,22.2401]
[1727703210520,0.8559,157.41,157.38,6.3539]
[1727703211705,0.8559,157.41,157.37,15.8857]
[1727703212113,7.2088,157.41,157.37,15.8857]
[1727703212606,0.8559,157.41,157.37,15.8857]
[1727703212796,0.8559,157.41,157.34,15.8889]
[1727703213224,6.3537,157.39,157.35,6.3552]
[1727703213502,6.3537,157.39,157.34,15.8889]
[1727703213713,6.3537,157.39,157.35,6.3552]
[1727703213879,6.3533,157.4,157.35,6.3552]
[1727703214302,0.8559,157.41,157.32,38.13019771]
[1727703214505,6.354,157.38,157.33,6.356]
[1727703215093,0.8559,157.41,157.32,22.2231]
[1727703215299,6.3536,157.39,157.34,6.3553]
[1727703215618,0.8559,157.41,157.33,15.8894]
[1727703215904,6.3532,157.4,157.35,6.3551]
[1727703216319,6.3532,157.4,157.36,0.38262828]
[1727703216496,6.3532,157.4,157.33,15.8894]
[1727703216702,6.3532,157.4,157.35,6.3551]
[1727703217102,0.8559,157.41,157.33,15.8894]
[1727703217335,7.2088,157.41,157.37,6.3544]
[1727703217625,0.8559,157.41,157.38,0.38226238]
[1727703218206,0.8559,157.41,157.39,0.38221939]
[1727703218724,0.8559,157.41,157.38,15.90709771]
[1727703219016,0.8559,157.41,157.4,6.3532]
[1727703219511,0.8559,157.41,157.39,6.3535]
[1727703220605,0.8559,157.41,157.37,15.8855]
[1727703220806,0.8559,157.41,157.38,6.354]
[1727703222107,7.2087,157.41,157.37,15.8855]
[1727703222327,0.8559,157.41,157.34,22.2443]
[1727703222644,0.8559,157.41,157.32,22.2231]
[1727703222939,6.3545,157.37,157.33,6.3559]
[1727703223125,0.8559,157.41,157.33,6.3559]
[1727703223304,0.8559,157.41,157.32,22.2231]
[1727703223503,6.3544,157.37,157.32,28.5792]
[1727703223915,6.3544,157.37,157.33,6.3559]
[1727703224815,0.8559,157.41,157.33,6.3559]
[1727703225115,6.3541,157.38,157.33,6.3559]
[1727703225327,6.3541,157.38,157.34,0.38312269]
[1727703226038,6.3537,157.39,157.34,6.73872269]
[1727703226252,6.3532,157.4,157.35,6.3551]
[1727703226534,6.3538,157.39,157.34,6.3555]
[1727703226838,6.354,157.38,157.34,6.3555]
[1727703227214,6.3537,157.39,157.35,0.3829348]
[1727703227928,6.3537,157.39,157.34,6.3555]
[1727703229926,0.8559,157.41,157.33,22.2455]
[1727703230111,6.3537,157.39,157.35,6.3552]
[1727703230310,6.3537,157.39,157.36,0.38277759]
[1727703231238,6.3537,157.39,157.35,6.3552]
[1727703231439,6.3537,157.39,157.36,0.38280465]
[1727703232332,0.8559,157.41,157.36,0.38280465]
[1727703232535,6.3533,157.4,157.36,0.38280465]
[1727703233141,6.3537,157.39,157.35,6.3552]
[1727703233747,1.58831344,157.4,157.3,31.79949771]
[1727703233924,6.355,157.36,157.32,6.3563]
[1727703235018,6.355,157.36,157.33,0.38352667]
[1727703235226,6.3545,157.37,157.33,6.73952667]
[1727703235746,6.3545,157.37,157.32,6.3563]
[1727703236616,6.3549,157.36,157.32,6.3563]
[1727703237133,6.3549,157.36,157.31,6.3567]
[1727703238051,6.3549,157.36,157.3,15.8924]
[1727703238052,6.3557,157.34,157.3,22.2494]
[1727703238225,6.3561,157.33,157.29,6.3573]
[1727703238426,6.3561,157.33,157.28,28.4673]
[1727703238653,6.3556,157.35,157.3,6.3571]
[1727703238838,6.3556,157.35,157.31,0.38413488]
[1727703239026,6.3556,157.35,157.3,6.3571]
[1727703239637,1.58880884,157.38,157.3,6.3571]
[1727703239822,6.3557,157.34,157.29,6.3575]
[1727703240424,15.8844,157.39,157.28,6.3579]
[1727703240425,6.3561,157.33,157.28,6.3579]
[1727703240632,6.3557,157.34,157.29,6.3575]
[1727703241133,6.3557,157.34,157.3,0.38426817]
[1727703241729,15.2493,157.37,157.27,15.8957]
[1727703241948,6.3568,157.32,157.27,25.73974956]
[1727703242152,32.72477215,157.37,157.27,25.73974956]
[1727703242662,32.72477215,157.37,157.27,22.2541]
[1727703243240,6.3569,157.31,157.27,22.2541]
[1727703243557,6.3565,157.32,157.27,25.73974956]
[1727703243844,31.1359,157.37,157.28,0.38463966]
[1727703244049,6.3564,157.33,157.29,6.3576]
[1727703244248,6.3564,157.33,157.27,19.38134956]
[1727703244542,6.3564,157.33,157.28,6.3579]
[1727703245547,6.3565,157.32,157.28,6.3579]
[1727703245762,6.357,157.31,157.29,0.38485267]
[1727703245923,6.357,157.31,157.27,22.2541]
[1727703246770,6.357,157.31,157.27,15.8957]
[1727703247349,6.357,157.31,157.28,0.38494337]
[1727703247545,6.3565,157.32,157.29,0.3849294]
[1727703249351,6.3565,157.32,157.28,6.3578]
[1727703250862,15.8886,157.35,157.29,0.38464916]
[1727703251053,6.3558,157.34,157.29,6.74224916]
[1727703251366,15.2493,157.37,157.3,6.3571]
[1727703251652,16.83807569,157.37,157.29,22.2512]
[1727703252035,6.3571,157.31,157.26,22.2554]
[1727703252258,6.3565,157.32,157.27,6.74295747]
[1727703252937,6.3568,157.31,157.27,6.3581]
[1727703253465,6.3573,157.3,157.26,22.2556]
[1727703253770,6.3573,157.3,157.26,15.8968]
[1727703254154,6.358,157.29,157.24,28.8227]
[1727703254340,1.58929794,157.33,157.24,16.6037417]
[1727703254549,6.3584,157.28,157.24,16.6037417]
[1727703255333,6.3584,157.28,157.24,22.9633417]
[1727703255533,6.3584,157.28,157.25,0.38572264]
[1727703255933,6.3584,157.28,157.24,12.7816]
[1727703256163,6.3588,157.27,157.23,15.8997]
[1727703256346,6.3589,157.26,157.23,15.8997]
[1727703256550,6.3589,157.26,157.22,9.84499388]
[1727703256742,6.3589,157.26,157.22,6.3604]
[1727703257475,16.2395,157.31,157.23,6.74612036]
[1727703257685,6.3581,157.28,157.23,6.74612036]
[1727703257868,6.3581,157.28,157.23,6.36]
[1727703258552,6.3577,157.29,157.25,6.3592]
[1727703258851,6.2106,157.36,157.26,6.3587]
[1727703258852,6.3572,157.3,157.26,6.3587]
[1727703259083,6.3568,157.31,157.27,6.74354342]
[1727703259747,6.3568,157.31,157.26,6.3588]
[1727703259948,6.3574,157.3,157.25,6.3591]
[1727703262262,6.3565,157.32,157.26,38.36871934]
[1727703262473,6.3565,157.32,157.26,53.83121934]
[1727703262665,6.3565,157.32,157.27,6.3583]
[1727703262859,6.3565,157.32,157.28,0.38484069]
[1727703264074,31.2569,157.35,157.28,6.74274069]
[1727703264276,6.3561,157.33,157.28,6.74274069]
[1727703264594,16.6576,157.39,157.31,6.3567]
[1727703264803,16.7382,157.41,157.32,6.74014707]
[1727703264804,6.3544,157.37,157.32,6.74014707]
[1727703264972,6.3544,157.37,157.32,6.3563]
[1727703266355,0.8559,157.41,157.35,6.3552]
[1727703266618,0.8559,157.41,157.36,0.38296483]
[1727703266774,0.8559,157.41,157.35,6.3552]
[1727703266979,0.8559,157.41,157.34,22.26806989]
[1727703267756,6.354,157.38,157.34,15.91256989]
[1727703269188,6.3537,157.39,157.34,22.26806989]
[1727703269364,0.8559,157.41,157.34,15.91256989]
[1727703269555,6.3532,157.4,157.35,6.73817137]
[1727703269757,6.3532,157.4,157.35,6.3552]
[1727703270002,6.3537,157.39,157.34,22.26806989]
[1727703271074,0.8559,157.41,157.34,15.91256989]
[1727703271075,2.44419418,157.41,157.34,15.91256989]
[1727703271382,6.3543,157.38,157.34,15.91256989]
[1727703272483,0.8559,157.41,157.32,31.80306989]
[1727703272671,1.58842456,157.4,157.32,38.15946989]
[1727703272872,6.3544,157.37,157.33,6.3559]
[1727703273105,6.3544,157.37,157.32,38.15946989]
[1727703273289,6.3548,157.36,157.32,38.15946989]
[1727703273677,6.3544,157.37,157.32,38.15946989]
[1727703274597,6.3544,157.37,157.33,6.356]
[1727703275183,6.3544,157.37,157.32,38.15936989]
[1727703275599,6.3541,157.38,157.34,22.26816989]
[1727703275884,6.3537,157.39,157.34,22.26806989]
[1727703276991,6.3541,157.38,157.34,22.26806989]
[1727703278370,6.3536,157.39,157.34,22.26806989]
[1727703279594,6.3541,157.38,157.34,22.26806989]
[1727703279966,6.3547,157.37,157.32,38.15916989]
[1727703280178,1.58834408,157.4,157.31,22.3744]
[1727703280371,6.3557,157.34,157.31,22.3744]
[1727703280586,15.8857,157.38,157.28,15.91256989]
[1727703280886,15.8857,157.38,157.28,9.84414171]
[1727703280887,6.3564,157.32,157.28,9.84414171]
[1727703281678,6.3564,157.32,157.29,10.17630252]
[1727703282089,6.3564,157.32,157.28,9.84414171]
[1727703282300,6.3564,157.32,157.29,10.17630252]
[1727703283570,15.8857,157.38,157.28,6.3579]
[1727703283571,12.2421,157.38,157.28,6.3579]
[1727703285095,6.3564,157.32,157.28,6.3579]
[1727703285590,15.8875,157.36,157.27,38.32064796]
[1727703285797,6.3572,157.3,157.27,22.4201]
[1727703286592,6.3569,157.31,157.27,22.4201]
[1727703287176,6.3569,157.31,157.27,28.7785]
[1727703287371,6.3569,157.31,157.27,22.4201]
[1727703288495,15.8875,157.36,157.28,0.38477056]
[1727703288708,6.3563,157.33,157.28,6.74267056]
[1727703288999,6.3567,157.32,157.28,6.74267056]
[1727703289374,6.3567,157.32,157.28,0.38477056]
[1727703289878,6.3567,157.32,157.27,44.67894796]
[1727703292800,1.58895504,157.35,157.27,44.67894796]
[1727703293106,6.3572,157.31,157.27,22.4201]
[1727703293701,6.3574,157.3,157.27,22.4201]
[1727703297110,6.357,157.31,157.28,0.38484758]
[1727703297496,6.357,157.31,157.27,22.4201]
[1727703297689,6.3573,157.3,157.27,22.4201]
[1727703298816,6.3571,157.31,157.27,22.4201]
[1727703300390,6.358,157.28,157.27,6.4684]
[1727703300597,6.358,157.28,157.24,13.93418096]
[1727703300894,6.3573,157.3,157.26,6.3588]
[1727703301098,6.3571,157.31,157.27,22.64376577]
[1727703301301,6.3569,157.31,157.27,22.64376577]
[1727703301507,15.8888,157.35,157.29,15.90054796]
[1727703301792,15.8888,157.35,157.27,38.15464796]
[1727703302314,6.3576,157.29,157.24,15.8985]
[1727703302538,15.8905,157.33,157.24,19.39045861]
[1727703302539,6.3585,157.27,157.24,19.39045861]
[1727703303290,6.3582,157.28,157.24,19.39045861]
[1727703303503,6.3582,157.28,157.24,25.75005861]
[1727703303701,6.3582,157.28,157.25,13.6734219]
[1727703304023,6.3588,157.26,157.25,3.49195861]
[1727703304210,17.69452194,157.32,157.24,3.49434678]
[1727703304211,6.3593,157.25,157.24,3.49434678]
[1727703304415,15.895,157.29,157.21,10.18146329]
[1727703304416,6.3598,157.24,157.21,10.18146329]
[1727703304616,6.3598,157.24,157.21,13.67605699]
[1727703304992,6.3598,157.24,157.21,10.18146329]
[1727703305200,6.3593,157.25,157.21,10.18146329]
[1727703305407,6.3593,157.25,157.21,13.67721956]
[1727703305605,6.3593,157.25,157.21,3.49575627]
[1727703306222,15.895,157.29,157.2,6.3612]
[1727703306223,6.3602,157.23,157.2,3.49575627]
[1727703306904,15.895,157.29,157.21,0.38650665]
[1727703307095,6.3589,157.26,157.21,22.27570516]
[1727703307498,6.3585,157.27,157.22,6.3604]
[1727703307810,6.3581,157.28,157.23,22.27520516]
[1727703307997,6.3581,157.28,157.24,0.3854649]
[1727703308200,15.8883,157.35,157.25,15.91520516]
[1727703308420,15.8883,157.35,157.26,0.38493926]
[1727703308631,6.3573,157.3,157.26,0.38493926]
[1727703308819,15.8883,157.35,157.26,0.38493926]
[1727703309005,15.0413,157.36,157.27,15.91520516]
[1727703309212,6.3561,157.33,157.28,6.74228899]
[1727703309496,15.0413,157.36,157.28,6.74228899]
[1727703309497,6.3565,157.32,157.28,6.74228899]
[1727703310325,15.8853,157.38,157.29,15.91520516]
[1727703310504,6.3557,157.34,157.3,0.38399261]
[1727703311825,6.3553,157.35,157.31,15.91520516]
[1727703312121,6.3553,157.35,157.32,0.38376272]
[1727703312330,6.3553,157.35,157.31,15.91520516]
[1727703313307,6.3553,157.35,157.32,0.38383518]
[1727703313923,6.3549,157.36,157.32,6.39213518]
[1727703314102,6.3549,157.36,157.33,15.91520516]
[1727703314300,6.3549,157.36,157.34,0.38346927]
[1727703314642,48.5028,157.41,157.34,0.38346927]
[1727703314643,6.3542,157.38,157.34,0.38346927]
[1727703314839,6.3542,157.38,157.35,15.91520516]
[1727703315037,6.3542,157.38,157.36,0.3829051]
[1727703315206,6.3542,157.38,157.35,15.91520516]
[1727703315407,6.3542,157.38,157.36,0.38291581]
[1727703315611,6.3537,157.39,157.36,0.38291581]
[1727703315817,0.8559,157.41,157.37,16.29808236]
[1727703316038,7.2088,157.41,157.37,16.29808236]
[1727703316215,7.2088,157.41,157.37,15.91520516]
[1727703316216,6.3533,157.4,157.37,15.91520516]
[1727703317547,6.3533,157.4,157.38,0.3824492]
[1727703318417,0.8559,157.41,157.39,15.91520516]
[1727703318624,0.8559,157.41,157.4,0.38164717]
[1727703319912,0.8559,157.41,157.39,37.85690516]
[1727703321416,0.8559,157.41,157.4,6.73462769]
[1727703322507,0.8559,157.41,157.4,6.3532]
[1727703324816,0.8559,157.41,157.4,6.73444716]
[1727703325133,6.3511,157.46,157.42,6.3523]